fUST/lending_fUST_20250929
["ID","MTS","AMOUNT","RATE_DAILY","PERIOD"]
[388315095,1759081838296,-500.0,0.00031986,2]
[388315096,1759081838306,-500.0,0.00031986,2]
[388315097,1759081838317,-500.0,0.00031986,2]
[388315098,1759081838326,-500.0,0.00031986,2]
[388315099,1759081838335,-500.0,0.00031986,2]
[388315100,1759081838345,-500.0,0.00031986,2]
[388315101,1759081838355,-500.0,0.00031986,2]
[388315102,1759081838364,-500.0,0.00031986,2]
[388315103,1759081838374,-500.0,0.00031986,2]
[388315104,1759081838384,-500.0,0.00031986,2]
[388315105,1759081838394,-500.0,0.00031986,2]
[388315106,1759081838403,-500.0,0.00031986,2]
[388315107,1759081838413,-500.0,0.00031986,2]
[388315108,1759081838423,-500.0,0.00031986,2]
[388315109,1759081838433,-500.0,0.00031986,2]
[388315110,1759081838442,-500.0,0.00031986,2]
[388315111,1759081838452,-500.0,0.00031986,2]
[388315112,1759081838462,-500.0,0.00031986,2]
[388315113,1759081838472,-500.0,0.00031986,2]
[388315114,1759081838481,-500.0,0.00031986,2]
[388315115,1759081838490,-469.82209538,0.00031986,2]
[388315116,1759081838500,-500.0,0.00031986,2]
[388315117,1759081838509,-500.0,0.00031986,2]
[388315118,1759081838518,-500.0,0.00031986,2]
[388315119,1759081838528,-500.0,0.00031986,2]
[388315120,1759081838537,-500.0,0.00031986,2]
[388315121,1759081838546,-500.0,0.00031986,2]
[388315122,1759081838557,-500.0,0.00031986,2]
[388315123,1759081838566,-500.0,0.00031986,2]
[388315124,1759081838575,-500.0,0.00031986,2]
[388315125,1759081838585,-500.0,0.00031986,2]
[388315126,1759081838594,-500.0,0.00031986,2]
[388315127,1759081838603,-506.6977927,0.00031986,2]
[388315128,1759081838612,-500.0,0.00031986,2]
[388315129,1759081838621,-557.34275671,0.00031986,2]
[388315130,1759081838631,-500.0,0.00031986,2]
[388315131,1759081838640,-500.0,0.00031986,2]
[388315132,1759081838649,-500.0,0.00031986,2]
[388315133,1759081838659,-500.0,0.00031986,2]
[388315134,1759081838668,-500.0,0.00031986,2]
[388315135,1759081838677,-500.0,0.00031986,2]
[388315136,1759081838687,-500.0,0.00031986,2]
[388315137,1759081838695,-500.0,0.00031986,2]
[388315138,1759081838705,-162.19216329,0.00031986,2]
[388315139,1759081838714,-160.38720087,0.00031986,2]
[388315140,1759081838724,-500.0,0.00031986,2]
[388315141,1759081838733,-500.0,0.00031986,2]
[388315142,1759081838743,-500.0,0.00031986,2]
[388315143,1759081838752,-500.0,0.00031986,2]
[388315144,1759081838761,-500.0,0.00031986,2]
[388315145,1759081838770,-500.0,0.00031986,2]
[388315146,1759081838780,-500.0,0.00031986,2]
[388315147,1759081838790,-500.0,0.00031986,2]
[388315148,1759081838799,-500.0,0.00031986,2]
[388315150,1759081838808,-500.0,0.00031986,2]
[388315151,1759081838817,-500.0,0.00031986,2]
[388315152,1759081838826,-500.0,0.00031986,2]
[388315153,1759081838836,-500.0,0.00031986,2]
[388315154,1759081838845,-500.0,0.00031986,2]
[388315155,1759081838855,-500.0,0.00031986,2]
[388315156,1759081838866,-500.0,0.00031986,2]
[388315157,1759081838876,-500.0,0.00031986,2]
[388315158,1759081838886,-500.0,0.00031986,2]
[388315159,1759081838896,-500.0,0.00031986,2]
[388315160,1759081838907,-500.0,0.00031986,2]
[388315161,1759081838917,-500.0,0.00031986,2]
[388315162,1759081838927,-500.0,0.00031986,2]
[388315163,1759081838939,-500.0,0.00031986,2]
[388315164,1759081838949,-500.0,0.00031986,2]
[388315165,1759081838958,-219.30020502,0.00031986,2]
[388315166,1759081838967,-500.0,0.00031986,2]
[388315167,1759081839209,-500.0,0.00031986,2]
[388315168,1759081839233,-500.0,0.00031986,2]
[388315169,1759081839243,-500.0,0.00031986,2]
[388315170,1759081839252,-273.06482468,0.000323,120]
[388315171,1759081839261,-168.0,0.00032419,2]
[388315172,1759081839270,-160.0,0.00032439,2]
[388315173,1759081839279,-417.15472785,0.00032439,2]
[388315174,1759081839289,-160.0,0.00032439,2]
[388315175,1759081839298,-199.0,0.00032545,15]
[388315176,1759081839308,-339.37105373,0.000326,120]
[388315177,1759081839318,-500.0,0.00032876,120]
[388315178,1759081839328,-1064.714903,0.00032877,2]
[388315179,1759081839337,-339.37105373,0.00033,120]
[388315180,1759081839348,-168.0,0.00033067,2]
[388315181,1759081839357,-199.0,0.00033093,16]
[388315182,1759081839367,-339.37105373,0.000333,120]
[388315183,1759081839384,-199.0,0.00033641,17]
[388315184,1759081839396,-246.26460604,0.000338,2]
[388315185,1759081839405,-166.86,0.00033801,10]
[388315186,1759081839415,-548.10047717,0.00033801,2]
[388315187,1759081839425,-276.44341049,0.00033809,7]
[388315188,1759081839435,-500.0,0.00033809,7]
[388315189,1759081839444,-500.0,0.00033809,7]
[388315190,1759081839454,-500.0,0.00033809,7]
[388315191,1759081839464,-500.0,0.00033809,7]
[388315192,1759081839475,-500.0,0.00033809,7]
[388315193,1759081839485,-500.0,0.00033809,7]
[388315194,1759081839495,-500.0,0.00033809,7]
[388315195,1759081839505,-500.0,0.00033809,7]
[388315196,1759081839516,-500.0,0.00033809,7]
[388315197,1759081839525,-500.0,0.00033809,7]
[388315198,1759081839534,-500.0,0.00033809,7]
[388315199,1759081839544,-500.0,0.00033809,7]
[388315200,1759081839553,-245.34911264,0.00033809,7]
[388315201,1759081839563,-500.0,0.00033809,7]
[388315202,1759081839572,-500.0,0.00033809,7]
[388315203,1759081839582,-500.0,0.00033809,7]
[388315204,1759081839592,-500.0,0.00033809,7]
[388315205,1759081839602,-500.0,0.00033809,7]
[388315206,1759081839612,-500.0,0.00033809,7]
[388315207,1759081839622,-238.92,0.00033811,3]
[388315208,1759081839631,-716.76,0.00033811,3]
[388315209,1759081839641,-49360.2529895,0.00033811,2]
[388315210,1759081839651,-1096.20095434,0.00033811,2]
[388315211,1759081839661,-189.35579204,0.00033819,7]
[388315212,1759081839671,-69326.9619997,0.00033821,2]
[388315213,1759081839681,-279.628754,0.000339,2]
[388315214,1759081839692,-400.0,0.000339,3]
[388315215,1759081839702,-1745.73993757,0.00033941,2]
[388315216,1759081839712,-250.0,0.00033941,30]
[388315217,1759081839724,-203.45978459,0.00033941,30]
[388315218,1759081839734,-151.0,0.00033941,30]
[388315220,1759081839743,-151.0,0.00033941,30]
[388315222,1759081839753,-151.0,0.00033941,30]
[388315224,1759081839763,-151.0,0.00033941,10]
[388315226,1759081839772,-151.0,0.00033941,10]
[388315228,1759081839782,-151.0,0.00033941,10]
[388315230,1759081839792,-151.60635211,0.00033941,30]
[388315232,1759081839801,-151.0,0.00033941,10]
[388315234,1759081839811,-151.0,0.00033941,10]
[388315236,1759081839821,-151.0,0.00033941,10]
[388315238,1759081839831,-151.0,0.00033941,10]
[388315240,1759081839840,-151.0,0.00033941,10]
[388315242,1759081839850,-151.0,0.00033941,10]
[388315244,1759081839860,-500.0,0.00033941,30]
[388315246,1759081839869,-490.98107543,0.00033944,2]
[388315248,1759081839879,-296.66520984,0.00033944,2]
[388315250,1759081839889,-707.0,0.00034,120]
[388315252,1759081839898,-160.0,0.00034118,7]
[388315254,1759081839909,-168.0,0.0003412,2]
[388315256,1759081839918,-199.0,0.00034189,18]
[388315258,1759081839930,-246.26460601,0.00034229,2]
[388315260,1759081839939,-294.0,0.0003425,2]
[388315262,1759081839949,-189.35579204,0.00034321,2]
[388315263,1759081839959,-160.0,0.00034321,2]
[388315264,1759081839970,-233.82138094,0.00034322,2]
[388315265,1759081839980,-500.0,0.00034344,7]
[388315266,1759081839990,-4472.41126575,0.00034345,2]
[388315267,1759081839999,-560.0,0.00034403,2]
[388315268,1759081840009,-2192.40190868,0.00034435,2]
[388315269,1759081840018,-979.0,0.00034439,2]
[388315270,1759081840028,-635.0,0.00034439,2]
[388315271,1759081840038,-2161.0,0.00034439,2]
[388315272,1759081840047,-150.0,0.00034439,2]
[388315273,1759081840056,-197441.011958,0.00034445,2]
[388315274,1759081840066,-4384.80381736,0.00034445,2]
[388315275,1759081840075,-315.54413405,0.00034455,2]
[388315276,1759081840084,-133284.84218959,0.00034455,2]
[388315287,1759081840295,-500.0,0.00033809,7]
[388315288,1759081840305,-160.0,0.00034322,2]
[388315289,1759081840314,-223.991686,0.00034445,10]
[388315290,1759081840324,-236715.15781041,0.00034455,2]
[388315291,1759081840333,-160.0,0.000345,2]
[388315292,1759081840342,-346.0,0.00034563,2]
[388315293,1759081840352,-246.26460601,0.00034658,2]
[388315294,1759081840361,-199.0,0.00034737,19]
[388315295,1759081840370,-434.29881017,0.00034813,2]
[388315296,1759081840379,-504.46625,0.00035,5]
[388315297,1759081840388,-260.0,0.00035048,2]
[388315298,1759081840398,-4472.41126575,0.00035068,2]
[388315299,1759081840407,-246.26460601,0.00035087,2]
[388315300,1759081840417,-477.84,0.00035181,3]
[388315301,1759081840426,-312.61751044,0.00035206,2]
[388315302,1759081840440,-199.0,0.00035285,20]
[388315303,1759081840450,-548.10047717,0.00035287,3]
[388315304,1759081840460,-600.0,0.00035297,2]
[388315305,1759081840470,-246.26460601,0.00035516,2]
[388315306,1759081840480,-504.46625,0.00035545,5]
[388315307,1759081840489,-360.0,0.00035596,2]
[388315308,1759081840499,-2192.40190868,0.00035606,3]
[388315309,1759081840508,-200.0,0.00035615,10]
[388315311,1759081840518,-232.696,0.00035615,2]
[388315312,1759081840527,-1733.2787064,0.00035615,30]
[388315313,1759081840537,-480.0,0.00035616,9]
[388315314,1759081840547,-619.2,0.00035616,9]
[388315315,1759081840556,-480.0,0.00035616,9]
[388315316,1759081840566,-480.0,0.00035616,9]
[388315318,1759081840576,-480.0,0.00035616,9]
[388315320,1759081840586,-480.0,0.00035616,9]
[388315323,1759081840596,-480.0,0.00035616,9]
[388315325,1759081840606,-480.0,0.00035616,9]
[388315327,1759081840616,-480.0,0.00035616,9]
[388315329,1759081840626,-480.31317012,0.00035616,9]
[388315331,1759081840635,-480.47508503,0.00035616,9]
[388315333,1759081840644,-481.37440666,0.00035616,9]
[388315335,1759081840654,-1065.43,0.00035616,9]
[388315337,1759081840664,-843.47,0.00035616,9]
[388315339,1759081840673,-480.29971497,0.00035616,9]
[388315341,1759081840683,-480.0,0.00035616,9]
[388315343,1759081840692,-480.0,0.00035616,9]
[388315345,1759081840702,-480.0,0.00035616,9]
[388315347,1759081840711,-480.0,0.00035616,9]
[388315350,1759081840721,-480.0,0.00035616,9]
[388315352,1759081840731,-480.0,0.00035616,9]
[388315354,1759081840741,-1014.01,0.00035616,9]
[388315356,1759081840751,-480.0,0.00035616,9]
[388315358,1759081840761,-480.0,0.00035616,9]
[388315360,1759081840772,-480.0,0.00035616,9]
[388315362,1759081840782,-480.0,0.00035616,9]
[388315364,1759081840791,-480.0,0.00035616,9]
[388315366,1759081840801,-480.0,0.00035616,9]
[388315368,1759081840810,-640.56,0.00035616,9]
[388315370,1759081840820,-485.76217538,0.00035616,9]
[388315373,1759081840831,-480.0,0.00035616,9]
[388315375,1759081840840,-480.0,0.00035616,9]
[388315377,1759081840849,-397.31119337,0.00035616,9]
[388315379,1759081840859,-480.0,0.00035616,9]
[388315381,1759081840868,-480.0,0.00035616,9]
[388315383,1759081840877,-480.0,0.00035616,9]
[388315385,1759081840886,-480.0,0.00035616,9]
[388315387,1759081840896,-822.6,0.00035616,9]
[388315389,1759081840905,-480.0,0.00035616,9]
[388315391,1759081840914,-480.0,0.00035616,9]
[388315393,1759081840923,-480.0,0.00035616,9]
[388315395,1759081840938,-480.0,0.00035616,9]
[388315397,1759081840947,-480.0,0.00035616,9]
[388315399,1759081840956,-480.73335312,0.00035616,9]
[388315401,1759081840967,-480.99304295,0.00035616,9]
[388315403,1759081840978,-480.0,0.00035616,9]
[388315405,1759081840988,-480.0,0.00035616,9]
[388315407,1759081840998,-480.0,0.00035616,9]
[388315409,1759081841007,-480.0,0.00035616,9]
[388315411,1759081841016,-480.0,0.00035616,9]
[388315413,1759081841026,-480.62678891,0.00035616,9]
[388315415,1759081841035,-480.0,0.00035616,9]
[388315417,1759081841044,-480.0,0.00035616,9]
[388315419,1759081841053,-480.0,0.00035616,9]
[388315421,1759081841062,-480.0,0.00035616,9]
[388315423,1759081841071,-480.0,0.00035616,9]
[388315425,1759081841080,-480.0,0.00035616,9]
[388315428,1759081841090,-480.0,0.00035616,9]
[388315429,1759081841099,-480.0,0.00035616,9]
[388315432,1759081841109,-568.34,0.00035616,9]
[388315434,1759081841117,-480.0,0.00035616,9]
[388315436,1759081841126,-480.0,0.00035616,9]
[388315438,1759081841136,-480.0,0.00035616,9]
[388315440,1759081841145,-1102.93,0.00035616,9]
[388315442,1759081841154,-481.15316016,0.00035616,9]
[388315444,1759081841163,-480.0,0.00035616,9]
[388315446,1759081841172,-542.14,0.00035616,9]
[388315448,1759081841181,-480.0,0.00035616,9]
[388315450,1759081841190,-480.0,0.00035616,9]
[388315452,1759081841199,-480.0,0.00035616,9]
[388315454,1759081841208,-480.0,0.00035616,9]
[388315456,1759081841218,-480.0,0.00035616,9]
[388315458,1759081841227,-480.0,0.00035616,9]
[388315460,1759081841238,-492.71,0.00035616,9]
[388315462,1759081841247,-480.80900371,0.00035616,9]
[388315464,1759081841256,-1985.84,0.00035616,9]
[388315466,1759081841266,-819.52,0.00035616,9]
[388315468,1759081841275,-480.0,0.00035616,9]
[388315470,1759081841284,-480.0,0.00035616,9]
[388315472,1759081841293,-480.0,0.00035616,9]
[388315474,1759081841302,-480.0,0.00035616,9]
[388315476,1759081841311,-480.0,0.00035616,9]
[388315478,1759081841320,-480.0,0.00035616,9]
[388315480,1759081841332,-480.0,0.00035616,9]
[388315482,1759081841341,-500.0,0.00035616,9]
[388315484,1759081841351,-500.0,0.00035616,9]
[388315486,1759081841360,-480.0,0.00035616,9]
[388315488,1759081841370,-500.0,0.00035616,9]
[388315490,1759081841379,-234.754086,0.00035616,9]
[388315492,1759081841388,-480.0,0.00035616,9]
[388315494,1759081841398,-674.04,0.00035616,9]
[388315496,1759081841407,-480.0,0.00035616,9]
[388315499,1759081841417,-480.0,0.00035616,9]
[388315501,1759081841426,-743.82,0.00035616,9]
[388315503,1759081841436,-480.0,0.00035616,9]
[388315505,1759081841445,-397.98382936,0.00035616,9]
[388315507,1759081841454,-480.0,0.00035616,9]
[388315509,1759081841463,-480.0,0.00035616,9]
[388315511,1759081841473,-381.31458081,0.00035616,9]
[388315513,1759081841482,-480.66597346,0.00035616,9]
[388315515,1759081841492,-480.0,0.00035616,9]
[388315517,1759081841501,-268.73470479,0.00035616,9]
[388315519,1759081841511,-480.0,0.00035616,9]
[388315521,1759081841520,-788.33,0.00035616,9]
[388315523,1759081841529,-903.72,0.00035616,9]
[388315525,1759081841539,-480.0,0.00035616,9]
[388315527,1759081841548,-480.0,0.00035616,9]
[388315529,1759081841558,-480.0,0.00035616,9]
[388315531,1759081841567,-481.39282536,0.00035616,9]
[388315533,1759081841576,-811.79,0.00035616,9]
[388315535,1759081841586,-480.0,0.00035616,9]
[388315537,1759081841595,-653.8,0.00035616,9]
[388315539,1759081841604,-480.0,0.00035616,9]
[388315541,1759081841613,-480.0,0.00035616,9]
[388315543,1759081841622,-481.84304791,0.00035616,9]
[388315545,1759081841631,-596.06,0.00035616,9]
[388315547,1759081841640,-480.0,0.00035616,9]
[388315549,1759081841649,-480.0,0.00035616,9]
[388315551,1759081841658,-480.0,0.00035616,9]
[388315553,1759081841667,-151.889801,0.00035616,7]
[388315555,1759081841677,-615.49,0.00035616,9]
[388315557,1759081841686,-480.0,0.00035616,9]
[388315559,1759081841695,-480.52890964,0.00035616,2]
[388315561,1759081841704,-480.0,0.00035616,9]
[388315563,1759081841721,-480.0,0.00035616,9]
[388315565,1759081841731,-499.31278281,0.00035616,9]
[388315567,1759081841740,-480.0,0.00035616,9]
[388315569,1759081841749,-480.0,0.00035616,9]
[388315571,1759081841758,-500.64207955,0.00035616,9]
[388315573,1759081841768,-761.77,0.00035616,9]
[388315575,1759081841777,-480.0,0.00035616,9]
[388315577,1759081841786,-151.0,0.00035616,7]
[388315579,1759081841795,-890.55,0.00035616,9]
[388315581,1759081841804,-480.0,0.00035616,9]
[388315583,1759081841814,-767.49,0.00035616,9]
[388315585,1759081841823,-480.0,0.00035616,9]
[388315587,1759081841832,-625.78,0.00035616,9]
[388315589,1759081841841,-480.0,0.00035616,9]
[388315591,1759081841852,-480.0,0.00035616,9]
[388315593,1759081841862,-480.0,0.00035616,9]
[388315595,1759081841871,-480.0,0.00035616,9]
[388315597,1759081841880,-480.0,0.00035616,9]
[388315599,1759081841888,-480.0,0.00035616,9]
[388315601,1759081841897,-480.0,0.00035616,9]
[388315603,1759081841907,-802.86,0.00035616,9]
[388315605,1759081841915,-634.67,0.00035616,9]
[388315607,1759081841926,-520.0,0.00035616,3]
[388315609,1759081841938,-151.0,0.00035616,7]
[388315611,1759081841947,-151.0,0.00035616,7]
[388315613,1759081841957,-480.0,0.00035616,9]
[388315615,1759081841966,-480.0,0.00035616,9]
[388315617,1759081841976,-480.0,0.00035616,9]
[388315619,1759081841986,-604.00195036,0.00035616,9]
[388315621,1759081841995,-879.84,0.00035616,9]
[388315623,1759081842006,-480.0,0.00035616,9]
[388315625,1759081842015,-480.0,0.00035616,9]
[388315627,1759081842024,-480.0,0.00035616,9]
[388315629,1759081842033,-621.80250309,0.00035616,9]
[388315631,1759081842042,-1000.0,0.00035616,9]
[388315633,1759081842051,-480.0,0.00035616,9]
[388315635,1759081842060,-481.21051043,0.00035616,9]
[388315637,1759081842069,-480.0,0.00035616,9]
[388315639,1759081842079,-480.0,0.00035616,9]
[388315641,1759081842087,-480.0,0.00035616,9]
[388315643,1759081842096,-622.24,0.00035616,9]
[388315645,1759081842105,-480.0,0.00035616,9]
[388315647,1759081842115,-480.0,0.00035616,9]
[388315649,1759081842124,-480.0,0.00035616,9]
[388315651,1759081842134,-480.0,0.00035616,9]
[388315653,1759081842143,-480.0,0.00035616,9]
[388315655,1759081842152,-480.0,0.00035616,9]
[388315657,1759081842162,-480.0,0.00035616,9]
[388315659,1759081842172,-480.0,0.00035616,9]
[388315661,1759081842181,-480.0,0.00035616,9]
[388315663,1759081842190,-480.0,0.00035616,9]
[388315666,1759081842199,-480.0,0.00035616,9]
[388315667,1759081842208,-480.0,0.00035616,9]
[388315669,1759081842217,-357.93097549,0.00035616,9]
[388315671,1759081842226,-500.0,0.00035616,2]
[388315673,1759081842237,-480.0,0.00035616,9]
[388315676,1759081842246,-500.0,0.00035616,2]
[388315678,1759081842256,-521.11809532,0.00035616,2]
[388315680,1759081842265,-480.0,0.00035616,9]
[388315682,1759081842275,-480.0,0.00035616,9]
[388315684,1759081842284,-505.21,0.00035616,9]
[388315686,1759081842293,-480.0,0.00035616,9]
[388315688,1759081842302,-1007.42,0.00035616,9]
[388315690,1759081842311,-480.0,0.00035616,9]
[388315692,1759081842320,-480.0,0.00035616,9]
[388315694,1759081842329,-480.0,0.00035616,9]
[388315696,1759081842338,-480.0,0.00035616,9]
[388315698,1759081842347,-480.0,0.00035616,9]
[388315700,1759081842357,-480.0,0.00035616,9]
[388315702,1759081842366,-480.0,0.00035616,9]
[388315704,1759081842375,-615.17,0.00035616,9]
[388315706,1759081842384,-1004.78,0.00035616,9]
[388315708,1759081842393,-869.62,0.00035616,9]
[388315710,1759081842402,-480.0,0.00035616,9]
[388315712,1759081842411,-480.0,0.00035616,9]
[388315714,1759081842420,-480.0,0.00035616,9]
[388315716,1759081842429,-480.0,0.00035616,9]
[388315718,1759081842439,-151.0,0.00035616,7]
[388315720,1759081842447,-480.0,0.00035616,9]
[388315721,1759081842457,-797.44,0.00035616,9]
[388315724,1759081842467,-480.0,0.00035616,9]
[388315726,1759081842476,-480.0,0.00035616,9]
[388315728,1759081842485,-480.0,0.00035616,9]
[388315730,1759081842494,-480.0,0.00035616,9]
[388315732,1759081842503,-480.0,0.00035616,9]
[388315734,1759081842513,-300.41114065,0.00035616,9]
[388315736,1759081842522,-480.0,0.00035616,9]
[388315738,1759081842531,-660.51,0.00035616,9]
[388315740,1759081842540,-651.47,0.00035616,9]
[388315742,1759081842549,-480.0,0.00035616,9]
[388315744,1759081842558,-480.0,0.00035616,9]
[388315746,1759081842568,-797.91,0.00035616,9]
[388315748,1759081842577,-444.81860454,0.00035616,9]
[388315750,1759081842586,-480.0,0.00035616,7]
[388315774,1759081842780,-735.5,0.00035616,9]
[388315776,1759081842790,-456.41322415,0.00035616,9]
[388315779,1759081842799,-722.15,0.00035616,9]
[388315781,1759081842808,-564.77598972,0.00035616,9]
[388315783,1759081842818,-480.0,0.00035616,9]
[388315785,1759081842828,-480.0,0.00035616,9]
[388315787,1759081842838,-151.0,0.00035616,7]
[388315789,1759081842847,-151.0,0.00035616,7]
[388315791,1759081842856,-151.0,0.00035616,7]
[388315793,1759081842865,-480.0,0.00035616,9]
[388315795,1759081842874,-151.0,0.00035616,7]
[388315797,1759081842883,-1049.96,0.00035616,9]
[388315799,1759081842892,-790.51,0.00035616,9]
[388315801,1759081842901,-1361.28,0.00035616,9]
[388315803,1759081842912,-516.7,0.00035616,9]
[388315805,1759081842923,-480.0,0.00035616,9]
[388315807,1759081842937,-480.0,0.00035616,9]
[388315809,1759081842947,-646.61,0.00035616,9]
[388315812,1759081842957,-480.0,0.00035616,9]
[388315815,1759081842966,-480.0,0.00035616,9]
[388315818,1759081842976,-480.0,0.00035616,9]
[388315821,1759081842986,-480.0,0.00035616,9]
[388315824,1759081842995,-1804.1,0.00035616,9]
[388315827,1759081843006,-1312.77,0.00035616,9]
[388315830,1759081843015,-480.0,0.00035616,9]
[388315832,1759081843024,-480.0,0.00035616,9]
[388315834,1759081843033,-151.0,0.00035616,7]
[388315836,1759081843043,-151.0,0.00035616,7]
[388315839,1759081843062,-480.0,0.00035616,9]
[388315841,1759081843073,-480.80255179,0.00035616,9]
[388315843,1759081843083,-637.95,0.00035616,9]
[388315845,1759081843092,-1211.85,0.00035616,9]
[388315847,1759081843102,-896.5,0.00035616,9]
[388315849,1759081843113,-480.0,0.00035616,9]
[388315851,1759081843123,-480.0,0.00035616,9]
[388315854,1759081843132,-1750.83,0.00035616,9]
[388315856,1759081843142,-1001.37,0.00035616,9]
[388315858,1759081843151,-602.05,0.00035616,9]
[388315860,1759081843161,-480.0,0.00035616,9]
[388315862,1759081843171,-480.83657854,0.00035616,9]
[388315864,1759081843180,-480.0,0.00035616,9]
[388315866,1759081843190,-480.0,0.00035616,2]
[388315868,1759081843200,-480.0,0.00035616,9]
[388315870,1759081843209,-480.0,0.00035616,9]
[388315872,1759081843219,-529.11,0.00035616,9]
[388315874,1759081843228,-480.0,0.00035616,9]
[388315876,1759081843237,-480.0,0.00035616,9]
[388315878,1759081843247,-564.32,0.00035616,9]
[388315880,1759081843256,-480.0,0.00035616,9]
[388315882,1759081843266,-480.0,0.00035616,9]
[388315884,1759081843275,-480.0,0.00035616,9]
[388315886,1759081843284,-480.0,0.00035616,9]
[388315888,1759081843294,-480.0,0.00035616,9]
[388315890,1759081843304,-480.0,0.00035616,9]
[388315892,1759081843314,-1094.35,0.00035616,9]
[388315894,1759081843324,-711.07,0.00035616,9]
[388315896,1759081843334,-480.0,0.00035616,9]
[388315898,1759081843344,-928.28,0.00035616,9]
[388315900,1759081843353,-666.93,0.00035616,9]
[388315902,1759081843363,-480.0,0.00035616,9]
[388315904,1759081843373,-611.13,0.00035616,9]
[388315906,1759081843383,-480.0,0.00035616,9]
[388315909,1759081843393,-150.39056161,0.00035616,9]
[388315911,1759081843404,-480.0,0.00035616,9]
[388315913,1759081843414,-772.84,0.00035616,9]
[388315915,1759081843424,-810.84,0.00035616,9]
[388315917,1759081843433,-480.0,0.00035616,9]
[388315919,1759081843442,-480.0,0.00035616,9]
[388315921,1759081843452,-938.04,0.00035616,9]
[388315923,1759081843462,-480.0,0.00035616,9]
[388315925,1759081843473,-480.0,0.00035616,9]
[388315927,1759081843482,-985.5,0.00035616,9]
[388315929,1759081843492,-480.0,0.00035616,9]
[388315931,1759081843502,-480.0,0.00035616,9]
[388315933,1759081843511,-480.0,0.00035616,9]
[388315935,1759081843521,-151.0,0.00035616,7]
[388315937,1759081843530,-202.314797,0.00035616,7]
[388315939,1759081843540,-550.91496746,0.00035616,9]
[388315941,1759081843549,-155.288219,0.00035616,7]
[388315944,1759081843559,-480.0,0.00035616,9]
[388315946,1759081843568,-480.0,0.00035616,9]
[388315948,1759081843578,-638.64,0.00035616,9]
[388315949,1759081843587,-871.3,0.00035616,9]
[388315951,1759081843596,-480.0,0.00035616,7]
[388315953,1759081843605,-1365.69,0.00035616,9]
[388315955,1759081843615,-480.0,0.00035616,9]
[388315957,1759081843624,-593.53458145,0.00035616,9]
[388315960,1759081843637,-981.24,0.00035616,9]
[388315962,1759081843647,-480.0,0.00035616,9]
[388315964,1759081843656,-480.0,0.00035616,9]
[388315966,1759081843666,-481.08275928,0.00035616,9]
[388315968,1759081843676,-480.0,0.00035616,9]
[388315971,1759081843685,-152.959384,0.00035616,7]
[388315973,1759081843695,-480.0,0.00035616,9]
[388315975,1759081843704,-480.0,0.00035616,9]
[388315977,1759081843713,-155.350315,0.00035616,7]
[388315979,1759081843724,-151.0,0.00035616,7]
[388315981,1759081843733,-488.42902589,0.00035616,9]